fUST/lending_fUST_20241213
["ID","MTS","AMOUNT","RATE_DAILY","PERIOD"]
[345172084,1734075038802,-163.34379615,0.00027396,2]
[345172086,1734075038811,-254.36128223,0.00027396,2]
[345172088,1734075038820,-253.98520032,0.00027396,2]
[345172090,1734075038830,-16.69758833,0.00027396,2]
[345172092,1734075038842,-483.30241167,0.00027396,2]
[345172094,1734075038852,-467.6286618,0.00027396,2]
[345172096,1734075038862,-200.12617288,0.00027396,2]
[345172099,1734075038873,-299.87382712,0.00027396,2]
[345172101,1734075038884,-525.32600094,0.00027396,2]
[345172103,1734075038900,-58.62364385,0.00027396,2]
[345172105,1734075038909,-500.0,0.00027396,2]
[345172107,1734075038918,-400.93819971,0.00027396,2]
[345172109,1734075038931,-99.06180029,0.00027396,2]
[345172111,1734075038941,-500.0,0.00027396,2]
[345172113,1734075038950,-500.0,0.00027396,2]
[345172115,1734075038959,-500.0,0.00027396,2]
[345172117,1734075038970,-367.66100238,0.00027396,2]
[345172119,1734075038979,-500.0,0.00027396,2]
[345172122,1734075038989,-235.37270701,0.00027396,2]
[345172124,1734075038998,-500.0,0.00027396,2]
[345172126,1734075039008,-500.0,0.00027396,2]
[345172128,1734075039018,-500.0,0.00027396,2]
[345172130,1734075039027,-622.44486583,0.00027396,2]
[345172132,1734075039036,-500.0,0.00027396,2]
[345172134,1734075039046,-500.0,0.00027396,2]
[345172136,1734075039055,-500.0,0.00027396,2]
[345172138,1734075039065,-500.0,0.00027396,2]
[345172140,1734075039074,-500.0,0.00027396,2]
[345172142,1734075039084,-500.0,0.00027396,2]
[345172144,1734075039093,-500.0,0.00027396,2]
[345172146,1734075039102,-500.0,0.00027396,2]
[345172148,1734075039112,-500.0,0.00027396,2]
[345172150,1734075039121,-500.0,0.00027396,2]
[345172152,1734075039131,-500.0,0.00027396,2]
[345172154,1734075039140,-500.0,0.00027396,2]
[345172156,1734075039150,-500.0,0.00027396,2]
[345172158,1734075039160,-500.0,0.00027396,2]
[345172160,1734075039169,-203.35831973,0.00027396,2]
[345172163,1734075039181,-296.64168027,0.00027396,2]
[345172165,1734075039192,-500.0,0.00027396,2]
[345172167,1734075039201,-500.0,0.00027396,2]
[345172169,1734075039210,-500.0,0.00027396,2]
[345172171,1734075039220,-500.0,0.00027396,2]
[345172173,1734075039229,-500.0,0.00027396,2]
[345172175,1734075039239,-500.0,0.00027396,2]
[345172177,1734075039248,-500.0,0.00027396,2]
[345172178,1734075039258,-500.0,0.00027396,2]
[345172179,1734075039268,-500.0,0.00027396,2]
[345172180,1734075039277,-590.39204002,0.00027396,2]
[345172181,1734075039287,-500.0,0.00027396,2]
[345172182,1734075039296,-500.0,0.00027396,2]
[345172183,1734075039306,-500.0,0.00027396,2]
[345172184,1734075039315,-500.0,0.00027396,2]
[345172185,1734075039324,-500.0,0.00027396,2]
[345172186,1734075039334,-500.0,0.00027396,2]
[345172187,1734075039343,-500.0,0.00027396,2]
[345172188,1734075039353,-500.0,0.00027396,2]
[345172189,1734075039362,-500.0,0.00027396,2]
[345172190,1734075039372,-206.74576652,0.00027396,2]
[345172191,1734075039381,-500.0,0.00027396,2]
[345172192,1734075039390,-500.0,0.00027396,2]
[345172193,1734075039399,-225.45998343,0.00027396,2]
[345172194,1734075039409,-500.0,0.00027396,2]
[345172195,1734075039418,-506.10527099,0.00027396,2]
[345172196,1734075039428,-500.0,0.00027397,7]
[345172197,1734075039437,-500.0,0.00027397,7]
[345172198,1734075039446,-467.64437535,0.00027397,7]
[345172199,1734075039455,-500.0,0.00027397,7]
[345172200,1734075039464,-500.0,0.00027397,7]
[345172201,1734075039474,-514.16417935,0.00027397,7]
[345172202,1734075039483,-500.0,0.00027397,7]
[345172203,1734075039492,-500.0,0.00027397,7]
[345172204,1734075039501,-500.0,0.00027397,7]
[345172205,1734075039513,-500.0,0.00027397,7]
[345172206,1734075039522,-500.0,0.00027397,7]
[345172207,1734075039538,-500.0,0.00027397,7]
[345172208,1734075039547,-500.0,0.00027397,7]
[345172209,1734075039556,-500.0,0.00027397,7]
[345172210,1734075039565,-500.0,0.00027397,7]
[345172211,1734075039574,-500.0,0.00027397,7]
[345172212,1734075039584,-500.0,0.00027397,7]
[345172213,1734075039593,-500.0,0.00027397,7]
[345172214,1734075039602,-500.0,0.00027397,7]
[345172215,1734075039611,-500.0,0.00027397,7]
[345172216,1734075039622,-500.0,0.00027397,7]
[345172217,1734075039631,-500.0,0.00027397,7]
[345172218,1734075039640,-500.0,0.00027397,7]
[345172219,1734075039649,-500.0,0.00027397,7]
[345172220,1734075039658,-500.0,0.00027397,7]
[345172221,1734075039668,-500.0,0.00027397,7]
[345172222,1734075039677,-500.0,0.00027397,7]
[345172223,1734075039686,-553.77884491,0.00027397,7]
[345172224,1734075039695,-500.0,0.00027397,7]
[345172225,1734075039705,-500.0,0.00027397,7]
[345172226,1734075039715,-543.56007175,0.00027397,7]
[345172227,1734075039724,-500.0,0.00027397,7]
[345172228,1734075039734,-500.0,0.00027397,7]
[345172229,1734075039744,-564.48,0.00027397,7]
[345172230,1734075039754,-500.0,0.00027397,7]
[345172231,1734075039767,-500.0,0.00027397,7]
[345172232,1734075039777,-903.61,0.00027397,7]
[345172233,1734075039787,-500.0,0.00027397,7]
[345172234,1734075039796,-500.0,0.00027397,7]
[345172235,1734075039805,-500.0,0.00027397,7]
[345172236,1734075039815,-500.0,0.00027397,7]
[345172237,1734075039824,-500.0,0.00027397,7]
[345172238,1734075039834,-500.0,0.00027397,7]
[345172239,1734075039843,-500.0,0.00027397,7]
[345172240,1734075039853,-500.0,0.00027397,7]
[345172241,1734075039862,-500.0,0.00027397,7]
[345172242,1734075039872,-500.0,0.00027397,7]
[345172243,1734075039884,-500.0,0.00027397,7]
[345172244,1734075039894,-500.0,0.00027397,7]
[345172245,1734075039904,-255.2846431,0.00027397,7]
[345172246,1734075039914,-500.0,0.00027397,7]
[345172247,1734075039924,-578.48,0.00027397,7]
[345172248,1734075039934,-500.0,0.00027397,7]
[345172249,1734075039943,-500.0,0.00027397,7]
[345172250,1734075039954,-134.26108031,0.00027397,7]
[345172251,1734075039969,-65.73891969,0.00027397,7]
[345172252,1734075039978,-232.50737584,0.00027397,7]
[345172253,1734075039987,-500.0,0.00027397,7]
[345172254,1734075039997,-500.0,0.00027397,7]
[345172255,1734075040010,-500.0,0.00027397,7]
[345172256,1734075040019,-500.0,0.00027397,7]
[345172257,1734075040028,-500.0,0.00027397,7]
[345172258,1734075040038,-500.0,0.00027397,7]
[345172259,1734075040047,-500.0,0.00027397,7]
[345172260,1734075040057,-500.0,0.00027397,7]
[345172261,1734075040066,-500.0,0.00027397,7]
[345172262,1734075040076,-500.0,0.00027397,7]
[345172263,1734075040085,-500.0,0.00027397,7]
[345172264,1734075040094,-500.0,0.00027397,7]
[345172265,1734075040103,-500.0,0.00027397,7]
[345172267,1734075040113,-660.62,0.00027397,7]
[345172268,1734075040123,-500.0,0.00027397,7]
[345172269,1734075040132,-500.0,0.00027397,7]
[345172270,1734075040142,-500.0,0.00027397,7]
[345172271,1734075040151,-708.49,0.00027397,7]
[345172272,1734075040160,-500.0,0.00027397,7]
[345172273,1734075040170,-500.0,0.00027397,7]
[345172274,1734075040180,-500.0,0.00027397,7]
[345172275,1734075040189,-395.89370447,0.00027397,7]
[345172276,1734075040202,-104.10629553,0.00027397,7]
[345172277,1734075040211,-500.0,0.00027397,7]
[345172278,1734075040221,-500.0,0.00027397,7]
[345172279,1734075040230,-500.0,0.00027397,7]
[345172280,1734075040239,-1183.82,0.00027397,7]
[345172281,1734075040249,-629.58,0.00027397,7]
[345172282,1734075040259,-500.0,0.00027397,7]
[345172283,1734075040268,-500.0,0.00027397,7]
[345172284,1734075040277,-502.44,0.00027397,7]
[345172285,1734075040286,-1023.7,0.00027397,7]
[345172286,1734075040296,-500.0,0.00027397,7]
[345172287,1734075040305,-500.0,0.00027397,2]
[345172288,1734075040314,-630.62,0.00027397,7]
[345172289,1734075040324,-500.0,0.00027397,7]
[345172290,1734075040333,-500.0,0.00027397,7]
[345172291,1734075040342,-500.0,0.00027397,7]
[345172292,1734075040352,-500.0,0.00027397,7]
[345172293,1734075040361,-500.0,0.00027397,7]
[345172294,1734075040370,-153.13370447,0.00027397,7]
[345172321,1734075040749,-346.86629553,0.00027397,7]
[345172323,1734075040759,-500.0,0.00027397,7]
[345172325,1734075040768,-500.0,0.00027397,7]
[345172327,1734075040777,-871.4,0.00027397,7]
[345172328,1734075040786,-2420.47,0.00027397,7]
[345172329,1734075040796,-500.0,0.00027397,7]
[345172330,1734075040806,-500.0,0.00027397,7]
[345172332,1734075040815,-509.13,0.00027397,7]
[345172334,1734075040824,-500.0,0.00027397,7]
[345172336,1734075040833,-500.0,0.00027397,7]
[345172338,1734075040842,-500.0,0.00027397,7]
[345172340,1734075040851,-789.79,0.00027397,7]
[345172342,1734075040859,-526.07869584,0.00027397,7]
[345172344,1734075040868,-585.07,0.00027397,7]
[345172346,1734075040877,-378.58472473,0.00027397,7]
[345172350,1734075040908,-121.41527527,0.00027397,7]
[345172352,1734075040917,-500.0,0.00027397,7]
[345172354,1734075040926,-500.0,0.00027397,7]
[345172356,1734075040937,-500.0,0.00027397,7]
[345172358,1734075040946,-500.0,0.00027397,7]
[345172360,1734075040955,-500.0,0.00027397,7]
[345172362,1734075040966,-500.0,0.00027397,7]
[345172364,1734075040975,-500.0,0.00027397,7]
[345172366,1734075040985,-500.0,0.00027397,7]
[345172368,1734075040994,-500.0,0.00027397,7]
[345172370,1734075041003,-849.28,0.00027397,7]
[345172372,1734075041015,-500.0,0.00027397,7]
[345172374,1734075041025,-500.0,0.00027397,7]
[345172376,1734075041033,-500.0,0.00027397,7]
[345172378,1734075041043,-616.66,0.00027397,7]
[345172380,1734075041054,-500.0,0.00027397,7]
[345172382,1734075041063,-500.0,0.00027397,7]
[345172384,1734075041072,-500.0,0.00027397,7]
[345172386,1734075041082,-500.0,0.00027397,7]
[345172388,1734075041091,-500.0,0.00027397,7]
[345172390,1734075041100,-500.0,0.00027397,7]
[345172392,1734075041109,-500.0,0.00027397,7]
[345172394,1734075041118,-500.0,0.00027397,7]
[345172396,1734075041128,-962.25,0.00027397,7]
[345172398,1734075041137,-590.28,0.00027397,7]
[345172400,1734075041146,-500.0,0.00027397,7]
[345172402,1734075041155,-500.0,0.00027397,7]
[345172404,1734075041164,-500.0,0.00027397,7]
[345172406,1734075041173,-500.0,0.00027397,7]
[345172408,1734075041183,-633.69894992,0.00027397,7]
[345172410,1734075041192,-69.49057969,0.00027397,7]
[345172583,1734075046663,-357.92241344,0.00027397,7]
[345172584,1734075046672,-500.0,0.00027397,7]
[345172585,1734075046681,-500.0,0.00027397,7]
[345172586,1734075046690,-500.0,0.00027397,7]
[345172587,1734075046699,-591.88,0.00027397,7]
[345172588,1734075046708,-500.0,0.00027397,7]
[345172589,1734075046717,-500.0,0.00027397,7]
[345172590,1734075046726,-500.0,0.00027397,7]
[345172592,1734075046735,-500.0,0.00027397,7]
[345172594,1734075046744,-500.0,0.00027397,7]
[345172596,1734075046753,-500.0,0.00027397,7]
[345172598,1734075046764,-500.0,0.00027397,7]
[345172600,1734075046773,-651.76,0.00027397,7]
[345172602,1734075046782,-500.0,0.00027397,7]
[345172604,1734075046792,-948.6,0.00027397,7]
[345172606,1734075046801,-500.0,0.00027397,7]
[345172608,1734075046810,-1131.27,0.00027397,7]
[345172610,1734075046819,-500.0,0.00027397,7]
[345172612,1734075046828,-818.99,0.00027397,7]
[345172614,1734075046837,-500.0,0.00027397,7]
[345172616,1734075046846,-500.0,0.00027397,7]
[345172617,1734075046855,-818.55016496,0.00027397,7]
[345172620,1734075046868,-208.18983504,0.00027397,7]
[345172622,1734075046877,-500.0,0.00027397,7]
[345172624,1734075046887,-500.0,0.00027397,7]
[345172626,1734075046898,-71.01018496,0.00027397,7]
[345172628,1734075046909,-428.98981504,0.00027397,7]
[345172630,1734075046918,-505.31,0.00027397,7]
[345172632,1734075046927,-500.0,0.00027397,7]
[345172634,1734075046937,-500.0,0.00027397,7]
[345172636,1734075046946,-514.67,0.00027397,7]
[345172638,1734075046955,-500.0,0.00027397,7]
[345172640,1734075046968,-500.0,0.00027397,7]
[345172642,1734075046978,-536.57614747,0.00027397,7]
[345172644,1734075046987,-500.0,0.00027397,7]
[345172646,1734075046996,-1250.8,0.00027397,7]
[345172648,1734075047007,-535.68,0.00027397,7]
[345172650,1734075047019,-800.7,0.00027397,7]
[345172652,1734075047029,-618.91,0.00027397,7]
[345172653,1734075047039,-500.0,0.00027397,7]
[345172655,1734075047049,-1000.0,0.00027397,2]
[345172657,1734075047059,-500.0,0.00027397,7]
[345172659,1734075047069,-500.0,0.00027397,7]
[345172661,1734075047078,-573.92,0.00027397,7]
[345172663,1734075047088,-500.0,0.00027397,7]
[345172665,1734075047097,-500.0,0.00027397,7]
[345172667,1734075047107,-168.0,0.00027397,7]
[345172669,1734075047116,-500.0,0.00027397,7]
[345172671,1734075047125,-500.0,0.00027397,7]
[345172673,1734075047135,-1026.62,0.00027397,7]
[345172675,1734075047145,-1439.23,0.00027397,7]
[345172677,1734075047154,-500.0,0.00027397,7]
[345172679,1734075047164,-500.0,0.00027397,7]
[345172681,1734075047173,-500.0,0.00027397,7]
[345172683,1734075047182,-500.0,0.00027397,7]
[345172685,1734075047192,-1210.73,0.00027397,7]
[345172687,1734075047201,-500.0,0.00027397,7]
[345172689,1734075047210,-500.0,0.00027397,7]
[345172691,1734075047219,-98.91815144,0.00027397,7]
[345172694,1734075047232,-401.08184856,0.00027397,7]
[345172695,1734075047241,-500.0,0.00027397,7]
[345172697,1734075047250,-559.84,0.00027397,7]
[345172700,1734075047262,-500.0,0.00027397,7]
[345172702,1734075047271,-500.0,0.00027397,7]
[345172704,1734075047281,-500.0,0.00027397,7]
[345172706,1734075047290,-675.17732635,0.00027397,7]
[345172797,1734075768596,165.342998,0.00013973,2]
[345172808,1734076217598,6135.22943916,0.000251,29]
[345172809,1734076232919,-300.0,0.000263,12]
[345172810,1734076232930,-649.44,0.000265,2]
[345172811,1734076232940,-150.0,0.00027,7]
[345172812,1734076232951,-150.0,0.00027,14]
[345172813,1734076232962,-602.76704912,0.00027,2]
[345172814,1734076232972,-1383.0609,0.00027283,15]
[345172815,1734076232982,-152.15267027,0.00027297,2]
[345172816,1734076232991,-1000.0,0.000273,2]
[345172817,1734076233001,-152.15267026,0.00027366,2]
[345172818,1734076233011,-300.0,0.00027372,2]
[345172819,1734076233021,-300.0,0.00027372,2]
[345172820,1734076233032,-500.0,0.00027373,2]
[345172821,1734076233041,-500.0,0.00027373,2]
[345172822,1734076233051,-528.05289757,0.00027396,2]
[345172823,1734076233068,-177.78964022,0.00027396,2]
[345172824,1734076233078,-513.60498509,0.00027396,2]
[345172825,1734076233087,-500.0,0.00027396,2]
[345172826,1734076233097,-485.29566693,0.00027396,2]
[345172827,1734076233107,-454.48800445,0.00027396,2]
[345172828,1734076233117,-500.0,0.00027396,2]
[345172829,1734076233126,-152.52846053,0.00027397,16]
[345172830,1734076233136,-16224.26101916,0.00027397,2]
[345172831,1734076233146,-293.27858957,0.00027397,2]
[345172832,1734076233155,-310.20611256,0.00027397,7]
[345172833,1734076233165,-502.26115446,0.00027397,7]
[345172834,1734076233175,-500.0,0.00027397,7]
[345172835,1734076233185,-500.0,0.00027397,7]
[345172836,1734076233195,-500.0,0.00027397,7]
[345172837,1734076233204,-557.34582137,0.00027397,7]
[345172838,1734076233213,-442.76302014,0.00027397,7]
[345172839,1734076233223,-618.79257849,0.00027397,7]
[345172840,1734076233232,-265.75419928,0.00027397,7]
[345172841,1734076233242,-500.0,0.00027397,7]
[345172842,1734076233252,-500.0,0.00027397,7]
[345172843,1734076233262,-500.0,0.00027397,7]
[345172844,1734076233271,-500.0,0.00027397,7]
[345172845,1734076233282,-508.75,0.00027397,7]
[345172846,1734076233291,-500.0,0.00027397,7]
[345172847,1734076233301,-500.0,0.00027397,7]
[345172848,1734076233311,-500.0,0.00027397,7]
[345172849,1734076233320,-500.0,0.00027397,7]
[345172850,1734076233331,-500.0,0.00027397,7]
[345172851,1734076233340,-500.0,0.00027397,7]
[345172852,1734076233350,-505.51,0.00027397,7]
[345172853,1734076233360,-500.0,0.00027397,7]
[345172854,1734076233369,-500.0,0.00027397,7]
[345172855,1734076233378,-500.0,0.00027397,7]
[345172856,1734076233388,-500.0,0.00027397,7]
[345172857,1734076233400,-500.0,0.00027397,7]
[345172858,1734076233410,-500.0,0.00027397,7]
[345172859,1734076233419,-500.0,0.00027397,7]
[345172860,1734076233429,-500.0,0.00027397,7]
[345172861,1734076233439,-789.16,0.00027397,7]
[345172862,1734076233448,-500.0,0.00027397,7]
[345172863,1734076233458,-571.3,0.00027397,7]
[345172864,1734076233467,-500.0,0.00027397,7]
[345172865,1734076233477,-500.0,0.00027397,7]
[345172866,1734076233487,-784.86,0.00027397,7]
[345172867,1734076233496,-500.0,0.00027397,7]
[345172868,1734076233506,-500.0,0.00027397,7]
[345172869,1734076233516,-952.59,0.00027397,7]
[345172870,1734076233525,-500.0,0.00027397,7]
[345172871,1734076233535,-500.0,0.00027397,7]
[345172872,1734076233544,-515.54626672,0.00027397,7]
[345172873,1734076233562,-560.41,0.00027397,7]
[345172874,1734076233574,-500.0,0.00027397,7]
[345172875,1734076233584,-500.0,0.00027397,7]
[345172876,1734076233594,-500.0,0.00027397,7]
[345172877,1734076233604,-500.0,0.00027397,7]
[345172878,1734076233613,-567.22,0.00027397,7]
[345172879,1734076233623,-500.0,0.00027397,7]
[345172880,1734076233633,-500.0,0.00027397,7]
[345172881,1734076233643,-500.0,0.00027397,7]
[345172882,1734076233653,-586.52,0.00027397,7]
[345172883,1734076233663,-500.0,0.00027397,7]
[345172884,1734076233672,-500.0,0.00027397,7]
[345172885,1734076233682,-500.0,0.00027397,7]
[345172886,1734076233691,-500.0,0.00027397,7]
[345172887,1734076233701,-500.0,0.00027397,7]
[345172888,1734076233710,-500.0,0.00027397,7]
[345172889,1734076233720,-500.0,0.00027397,7]
[345172890,1734076233730,-500.0,0.00027397,7]
[345172891,1734076233739,-500.0,0.00027397,7]
[345172892,1734076233748,-500.0,0.00027397,7]
[345172893,1734076233758,-590.67,0.00027397,7]
[345172894,1734076233768,-500.0,0.00027397,7]
[345172895,1734076233777,-500.0,0.00027397,7]
[345172896,1734076233790,-1090.74,0.00027397,7]
[345172897,1734076233799,-593.12,0.00027397,7]
[345172898,1734076233808,-983.96,0.00027397,7]
[345172899,1734076233818,-500.0,0.00027397,7]
[345172900,1734076233827,-500.0,0.00027397,7]
[345172901,1734076233837,-500.0,0.00027397,7]
[345172902,1734076233847,-500.0,0.00027397,7]
[345172903,1734076233857,-983.85,0.00027397,7]
[345172904,1734076233867,-500.0,0.00027397,7]
[345172905,1734076233876,-500.0,0.00027397,7]
[345172906,1734076233885,-500.0,0.00027397,7]
[345172907,1734076233894,-500.0,0.00027397,7]
[345172908,1734076233904,-500.0,0.00027397,7]
[345172909,1734076233913,-500.0,0.00027397,7]
[345172910,1734076233922,-500.0,0.00027397,7]
[345172911,1734076233931,-500.0,0.00027397,7]
[345172912,1734076233941,-500.0,0.00027397,7]
[345172913,1734076233950,-500.0,0.00027397,7]
[345172914,1734076233960,-500.0,0.00027397,7]
[345172915,1734076233969,-500.0,0.00027397,7]
[345172916,1734076233978,-500.0,0.00027397,7]
[345172917,1734076233987,-500.0,0.00027397,7]
[345172918,1734076233997,-500.0,0.00027397,7]
[345172919,1734076234007,-500.0,0.00027397,7]
[345172920,1734076234017,-500.0,0.00027397,7]
[345172921,1734076234027,-500.0,0.00027397,7]
[345172922,1734076234041,-956.32,0.00027397,7]
[345172923,1734076234051,-981.05,0.00027397,7]
[345172924,1734076234060,-500.0,0.00027397,7]
[345172925,1734076234070,-500.0,0.00027397,7]
[345172926,1734076234079,-609.95,0.00027397,7]
[345172927,1734076234090,-2319.61,0.00027397,7]
[345172928,1734076234100,-500.0,0.00027397,7]
[345172929,1734076234109,-500.0,0.00027397,7]
[345172930,1734076234119,-835.09,0.00027397,7]
[345172931,1734076234129,-500.0,0.00027397,7]
[345172932,1734076234139,-500.0,0.00027397,7]
[345172933,1734076234148,-560.69,0.00027397,7]
[345172934,1734076234158,-500.0,0.00027397,7]
[345172935,1734076234167,-500.0,0.00027397,7]
[345172936,1734076234178,-500.0,0.00027397,7]
[345172937,1734076234187,-500.0,0.00027397,7]
[345172938,1734076234198,-500.0,0.00027397,7]
[345172939,1734076234208,-500.0,0.00027397,7]
[345172940,1734076234218,-500.0,0.00027397,7]
[345172941,1734076234228,-813.89,0.00027397,7]
[345172942,1734076234238,-276.45973014,0.00027397,7]
[345172943,1734076234248,-500.0,0.00027397,7]
[345172944,1734076234258,-500.0,0.00027397,7]
[345172945,1734076234268,-500.0,0.00027397,7]
[345172946,1734076234278,-500.0,0.00027397,7]
[345172947,1734076234291,-500.0,0.00027397,7]
[345172948,1734076234302,-500.0,0.00027397,7]
[345172949,1734076234312,-500.0,0.00027397,7]
[345172950,1734076234322,-500.0,0.00027397,7]
[345172951,1734076234332,-500.0,0.00027397,7]
[345172952,1734076234342,-603.35,0.00027397,7]
[345172953,1734076234351,-500.0,0.00027397,7]
[345172954,1734076234360,-500.0,0.00027397,7]
[345172955,1734076234370,-500.0,0.00027397,7]
[345172956,1734076234379,-500.0,0.00027397,7]
[345172957,1734076234388,-500.0,0.00027397,7]
[345172958,1734076234401,-500.0,0.00027397,7]
[345172959,1734076234410,-500.0,0.00027397,7]
[345172960,1734076234420,-500.0,0.00027397,7]
[345172961,1734076234429,-500.0,0.00027397,7]
[345172962,1734076234439,-500.0,0.00027397,7]
[345172963,1734076234448,-500.0,0.00027397,7]
[345172964,1734076234458,-1084.13,0.00027397,7]
[345172965,1734076234467,-500.0,0.00027397,7]
[345172966,1734076234477,-500.0,0.00027397,7]
[345172967,1734076234488,-909.08,0.00027397,7]
[345172968,1734076234497,-500.0,0.00027397,7]
[345172969,1734076234507,-500.0,0.00027397,7]
[345172970,1734076234516,-500.0,0.00027397,7]
[345172971,1734076234525,-500.0,0.00027397,7]
[345172972,1734076234537,-520.12,0.00027397,7]
[345172973,1734076234547,-500.0,0.00027397,7]
[345172974,1734076234557,-500.0,0.00027397,7]
[345172975,1734076234566,-500.0,0.00027397,7]
[345172976,1734076234576,-1000.0,0.00027397,2]
[345172977,1734076234586,-513.36,0.00027397,7]
[345172978,1734076234596,-500.0,0.00027397,7]
[345172979,1734076234606,-500.0,0.00027397,7]
[345172980,1734076234615,-549.39,0.00027397,7]
[345172981,1734076234625,-500.0,0.00027397,7]
[345172982,1734076234634,-500.0,0.00027397,7]
[345172983,1734076234644,-500.0,0.00027397,7]
[345172984,1734076234654,-500.0,0.00027397,7]
[345172985,1734076234664,-1379.26,0.00027397,7]
[345172986,1734076234673,-654.71,0.00027397,7]
[345172987,1734076234682,-821.56,0.00027397,7]
[345172988,1734076234693,-500.0,0.00027397,7]
[345172989,1734076234702,-500.0,0.00027397,7]
[345172990,1734076234711,-168.0,0.00027397,7]
[345172991,1734076234720,-500.0,0.00027397,7]
[345172992,1734076234730,-500.0,0.00027397,7]
[345172993,1734076234739,-500.0,0.00027397,7]
[345172994,1734076234748,-500.0,0.00027397,7]
[345172995,1734076234757,-1160.29,0.00027397,7]
[345172996,1734076234767,-500.0,0.00027397,7]
[345172997,1734076234776,-500.0,0.00027397,7]
[345172998,1734076234786,-500.0,0.00027397,7]
[345172999,1734076234795,-500.0,0.00027397,7]
[345173000,1734076234805,-536.52,0.00027397,7]
[345173001,1734076234815,-500.0,0.00027397,7]
[345173002,1734076234823,-500.0,0.00027397,7]
[345173003,1734076234833,-722.75,0.00027397,7]
[345173004,1734076234842,-500.0,0.00027397,7]
[345173005,1734076234851,-500.60236212,0.00027397,7]
[345173006,1734076234860,-500.0,0.00027397,7]
[345173007,1734076234870,-500.0,0.00027397,7]
[345173008,1734076234879,-500.0,0.00027397,7]
[345173009,1734076234888,-500.0,0.00027397,7]
[345173010,1734076234898,-500.0,0.00027397,7]
[345173011,1734076234907,-500.0,0.00027397,7]
[345173012,1734076234916,-500.0,0.00027397,7]
[345173013,1734076234925,-500.0,0.00027397,7]
[345173014,1734076234935,-500.0,0.00027397,7]
[345173015,1734076234944,-500.0,0.00027397,7]
[345173016,1734076234953,-500.0,0.00027397,7]
[345173017,1734076234962,-500.0,0.00027397,7]
[345173018,1734076234972,-500.0,0.00027397,7]
[345173019,1734076234981,-500.0,0.00027397,7]
[345173020,1734076234990,-715.62,0.00027397,7]
[345173021,1734076234999,-500.0,0.00027397,7]
[345173022,1734076235010,-342.28114301,0.00027397,7]
[345173023,1734076235019,-500.0,0.00027397,7]
[345173024,1734076235029,-500.0,0.00027397,7]
[345173025,1734076235040,-500.0,0.00027397,7]
[345173026,1734076235049,-500.0,0.00027397,7]
[345173027,1734076235059,-500.0,0.00027397,7]
[345173028,1734076235068,-993.04,0.00027397,7]
[345173029,1734076235077,-500.0,0.00027397,7]
[345173030,1734076235090,-500.0,0.00027397,7]
[345173031,1734076235099,-500.0,0.00027397,7]
[345173032,1734076235109,-500.0,0.00027397,7]